fUST/lending_fUST_20240321
["ID","MTS","AMOUNT","RATE_DAILY","PERIOD"]
[319722127,1710950460525,-1571.32607788,0.00022599,2]
[319722128,1710950460548,-2745.78191176,0.00022599,2]
[319722129,1710950460571,-1954.57424788,0.00022599,2]
[319722130,1710950460596,-2439.31776248,0.00022599,2]
[319722131,1710950483686,5427.12,0.00022555,2]
[319722132,1710950531037,-597.13322661,0.00022596,2]
[319722133,1710950531058,-1618.00449362,0.00022597,2]
[319722134,1710950531078,-1300.05415471,0.00022597,2]
[319722135,1710950531099,-6732.9872,0.00022598,2]
[319722136,1710950531119,-1064.83037939,0.00022599,2]
[319722137,1710950531143,-1579.99054567,0.000226,2]
[319722138,1710950599556,695.218055,0.00022431,2]
[319722139,1710950617860,-500.0,0.00040993,120]
[319722140,1710950617884,-369.94707107,0.00040993,30]
[319722141,1710950617908,-3430.14648306,0.00040993,30]
[319722142,1710950626870,158.090576,0.00022157,2]
[319722143,1710950657687,500.0,0.00040986,120]
[319722145,1710950861621,177.0308096,0.00022064,2]
[319722146,1710950912492,24900.0,0.00022006,2]
[319722147,1710950951134,-302.11520456,0.0002258,2]
[319722148,1710950951159,-994.38955449,0.0002258,2]
[319722149,1710950951180,-6732.9872,0.00022581,2]
[319722150,1710950951375,-3504.14814187,0.00022582,2]
[319722151,1710950951402,-1609.06716003,0.00022582,2]
[319722152,1710950951423,-534.46429513,0.00022583,2]
[319722153,1710950951443,-597.13322661,0.00022584,2]
[319722154,1710950951472,-1132.75732393,0.000226,2]
[319722155,1710950951493,-701.85397099,0.00022781,2]
[319722156,1710950951514,-1209.9544901,0.00022785,2]
[319722157,1710950951535,-250.0,0.0002285,2]
[319722158,1710950951556,-1263.11496852,0.000229,2]
[319722159,1710950951576,-154.90705577,0.00022938,2]
[319722160,1710950951597,-151.86927672,0.00022946,2]
[319722161,1710950951616,-1161.1341794,0.00022991,2]
[319722162,1710950951636,-624.09269855,0.00023921,2]
[319722163,1710950951657,-280.0,0.00024658,2]
[319722164,1710950951677,-620.20463493,0.00025117,2]
[319722165,1710950951698,-620.01023175,0.00026372,2]
[319722166,1710950951723,-2000.0,0.00026763,2]
[319722167,1710950951744,-178.21749972,0.00026897,3]
[319722168,1710950951765,-807.30445512,0.00026997,2]
[319722169,1710950951786,-205.03177245,0.00026997,2]
[319722170,1710950951807,-254.45897514,0.00026997,2]
[319722171,1710950951829,-271.37542683,0.00026997,2]
[319722172,1710950951849,-249.44718422,0.00026997,2]
[319722173,1710950951870,-2732.56740642,0.00026997,2]
[319722174,1710950951889,-1954.57424788,0.00026997,2]
[319722175,1710950951909,-812.54632319,0.00026997,2]
[319722176,1710950951930,-225.84733214,0.00026997,2]
[319722177,1710950951951,-1225.0759129,0.00026997,2]
[319722178,1710950951970,-293.7711974,0.00026998,2]
[319722179,1710950951990,-1744.03787918,0.00026998,2]
[319722180,1710950952009,-539.22321355,0.00026998,2]
[319722181,1710950952030,-343.03276652,0.00026998,2]
[319722182,1710950952051,-1223.29224337,0.00026998,2]
[319722183,1710950952071,-469.98746995,0.00026998,2]
[319722184,1710950952091,-571.42679707,0.00026998,2]
[319722185,1710950952110,-301.30557888,0.00026998,2]
[319722186,1710950952129,-540.30807157,0.00026998,2]
[319722187,1710950952149,-536.36461442,0.00026998,2]
[319722188,1710950952169,-362.96361309,0.00026998,2]
[319722189,1710950952188,-1991.16563529,0.00026998,2]
[319722190,1710950952213,-160.02311368,0.00026998,2]
[319722191,1710950952233,-221.66208912,0.00026998,2]
[319722192,1710950952253,-359.6942461,0.00026998,2]
[319722193,1710950952273,-1919.51,0.00026998,2]
[319722194,1710950952294,-1707.49,0.00026998,2]
[319722195,1710950952324,-1812.04,0.00026998,2]
[319722196,1710950952380,-992.1,0.00026998,2]
[319722197,1710950952401,-22942.15,0.00026998,2]
[319722198,1710950952422,-2390.48,0.00026998,2]
[319722199,1710950952442,-1515.58,0.00026998,2]
[319722200,1710950952465,-1176.17,0.00026998,2]
[319722201,1710950952486,-500.0,0.00026998,2]
[319722202,1710950952505,-500.0,0.00026998,2]
[319722203,1710950952525,-500.0,0.00026999,2]
[319722204,1710950952545,-500.0,0.00026999,2]
[319722205,1710950952565,-500.0,0.00026999,2]
[319722206,1710950952585,-500.0,0.00026999,2]
[319722207,1710950952606,-699.97,0.00026999,2]
[319722208,1710950952627,-500.0,0.00026999,2]
[319722209,1710950952647,-500.0,0.00026999,2]
[319722210,1710950952667,-500.0,0.00026999,2]
[319722211,1710950952688,-500.0,0.00026999,2]
[319722212,1710950952710,-500.0,0.00026999,2]
[319722213,1710950952731,-586.93,0.00026999,2]
[319722214,1710950952754,-292.57173594,0.00026999,2]
[319722215,1710950952774,-500.0,0.00026999,2]
[319722216,1710950952795,-4945.0,0.00026999,2]
[319722217,1710950952814,-596.13,0.00026999,2]
[319722218,1710950952838,-1902.17,0.00026999,2]
[319722219,1710950952858,-500.0,0.00026999,2]
[319722220,1710950952878,-871.37,0.00026999,2]
[319722221,1710950952898,-500.0,0.00026999,2]
[319722222,1710950952918,-23586.65,0.00026999,2]
[319722223,1710950952938,-500.0,0.00026999,2]
[319722224,1710950952964,-10415.12,0.00026999,2]
[319722225,1710950952985,-500.0,0.00026999,2]
[319722226,1710950953006,-500.0,0.00026999,2]
[319722227,1710950953027,-2998.7,0.00026999,2]
[319722228,1710950953048,-500.0,0.00026999,2]
[319722229,1710950953068,-500.0,0.00026999,2]
[319722230,1710950953089,-686.05,0.00026999,2]
[319722231,1710950953109,-500.0,0.00026999,2]
[319722232,1710950953130,-500.0,0.00026999,2]
[319722233,1710950953150,-2965.43,0.00026999,2]
[319722234,1710950953170,-500.0,0.00026999,2]
[319722235,1710950953190,-500.0,0.00026999,2]
[319722236,1710950953213,-500.0,0.00026999,2]
[319722237,1710950953232,-1082.25,0.00026999,2]
[319722238,1710950953252,-500.0,0.00026999,2]
[319722239,1710950953272,-214.59754652,0.00026999,2]
[319722240,1710950953293,-500.0,0.00026999,2]
[319722241,1710950953316,-151.0,0.00026999,2]
[319722242,1710950953338,-539.09,0.00026999,2]
[319722243,1710950953359,-1173.41,0.00026999,2]
[319722244,1710950953381,-151.0,0.00026999,2]
[319722245,1710950953402,-500.0,0.00026999,2]
[319722246,1710950953422,-658.89,0.00026999,2]
[319722247,1710950953442,-500.0,0.00026999,2]
[319722248,1710950953464,-500.0,0.00026999,2]
[319722249,1710950953484,-500.0,0.00026999,2]
[319722250,1710950953504,-1809.55,0.00026999,2]
[319722251,1710950953523,-500.0,0.00026999,2]
[319722252,1710950953543,-20690.14,0.00026999,2]
[319722253,1710950953563,-508.52,0.00026999,2]
[319722254,1710950953583,-699.65,0.00026999,2]
[319722255,1710950953603,-500.0,0.00026999,2]
[319722256,1710950953622,-349.85512897,0.00026999,2]
[319722329,1710951038483,-250.0,0.00026068,2]
[319722332,1710951038493,-1609.06716003,0.00026996,2]
[319722334,1710951038504,-275.9036585,0.00026997,2]
[319722336,1710951038513,-232.63700866,0.00026998,2]
[319722338,1710951038524,-389.80596126,0.00026998,2]
[319722340,1710951038536,-998.65359999,0.00026998,2]
[319723175,1710951046966,-347.609027,0.00026136,2]
[319723178,1710951046976,-6732.9872,0.00026995,2]
[319723181,1710951046985,-2114.98463376,0.00026998,2]
[319723184,1710951046994,-394.0916132,0.00026998,2]
[319723186,1710951047003,-1069.81327689,0.00026998,4]
[319723187,1710951047014,-1733.83476841,0.00026998,2]
[319723237,1710951047794,-89.07523159,0.00026998,2]
[319723239,1710951047804,-6753.7355996,0.00026998,2]
[319724817,1710951065209,1788.58250126,0.00019998,2]
[319729438,1710951205577,154.90705577,0.00019998,2]
[319729440,1710951219514,255.20111243,0.00019998,2]
[319729451,1710951690077,-685.20411728,0.0002397,2]
[319729452,1710951690100,-345.795202,0.00023971,2]
[319729453,1710951690121,-185.1362304,0.00024012,2]
[319729454,1710951690141,-158.44184,0.00024125,2]
[319729455,1710951690161,-300.0,0.00024809,2]
[319729456,1710951690182,-9484.0508978,0.0002481,2]
[319729457,1710951690202,-202.1945166,0.0002481,2]
[319729458,1710951690222,-842.07664568,0.00024899,2]
[319729459,1710951691264,6404.10055024,0.00024809,2]
[319729460,1710952033116,-561.38443045,0.00024899,2]
[319729461,1710952033141,-5160.19386016,0.00025815,2]
[319729462,1710952080266,4999.995,0.00022555,2]
[319729463,1710952145213,-367.54302814,0.00023715,2]
[319729464,1710952159141,-154.92253873,0.00022555,2]
[319729465,1710952159163,-6.71325883,0.00023715,2]
[319729466,1710952159186,-1572.79333984,0.00025815,2]
[319729467,1710952159208,-23320.49340133,0.00025816,2]
[319729518,1710952233266,-217.20847509,0.00023715,2]
[319729520,1710952233276,-2963.29152491,0.00025815,2]
[319729524,1710952233326,-3769.69567509,0.00025815,2]
[319729526,1710952233337,-1579.50659867,0.00025816,2]
[319729529,1710952233347,-172.897601,0.00025862,2]
[319729532,1710952233356,-1134.33031565,0.00026457,2]
[319729536,1710952233366,-1000.0,0.00026898,2]
[319729539,1710952233376,-2000.0,0.00026925,2]
[319729542,1710952233385,-368.24023239,0.00026994,2]
[319729544,1710952233395,-191.45799188,0.00026994,2]
[319729546,1710952233404,-202.18468344,0.00026995,2]
[319729548,1710952233414,-161.73502472,0.00026996,2]
[319729550,1710952233423,-500.0,0.00026996,2]
[319729552,1710952233433,-1570.14224023,0.00026996,2]
[319729554,1710952233444,-684.64363476,0.00026996,2]
[319729556,1710952233455,-500.0,0.00026996,2]
[319729558,1710952233467,-500.0,0.00026996,2]
[319729560,1710952233479,-670.8,0.00026996,2]
[319729562,1710952233489,-500.0,0.00026996,2]
[319729564,1710952233499,-835.06,0.00026996,2]
[319729566,1710952233511,-1772.94,0.00026996,2]
[319729568,1710952233521,-950.76,0.00026996,2]
[319729570,1710952233533,-21986.22,0.00026996,2]
[319729573,1710952233552,-1736.54,0.00026996,2]
[319729574,1710952233563,-2290.87,0.00026996,2]
[319729577,1710952233573,-1037.15,0.00026996,2]
[319729579,1710952233584,-1452.43,0.00026996,2]
[319729581,1710952233594,-1127.16,0.00026996,2]
[319729582,1710952233604,-500.0,0.00026996,2]
[319729585,1710952233615,-500.0,0.00026996,2]
[319729587,1710952233626,-500.0,0.00026996,2]
[319729589,1710952233636,-1746.96,0.00026996,2]
[319729591,1710952233646,-500.0,0.00026996,2]
[319729593,1710952233657,-9699.75,0.00026996,2]
[319729594,1710952233668,-1852.83,0.00026996,2]
[319729596,1710952233679,-500.0,0.00026996,2]
[319729599,1710952233691,-500.0,0.00026996,2]
[319729600,1710952233701,-500.0,0.00026996,2]
[319729602,1710952233711,-618.57247678,0.00026996,2]
[319729604,1710952233723,-160.0,0.00026997,2]
[319729606,1710952233733,-160.62017136,0.00026997,2]
[319729608,1710952233743,-160.0,0.00026997,2]
[319729610,1710952233755,-230.36372828,0.00026997,2]
[319729612,1710952233765,-500.0,0.00026997,2]
[319729615,1710952233776,-622.0458634,0.00026997,2]
[319729616,1710952233794,-500.0,0.00026997,2]
[319729619,1710952233808,-410.9932973,0.00026997,2]
[319729621,1710952233819,-451.71984223,0.00026997,2]
[319729622,1710952233830,-500.0,0.00026997,2]
[319729624,1710952233841,-500.0,0.00026997,2]
[319729626,1710952233852,-500.0,0.00026997,2]
[319729628,1710952233863,-500.0,0.00026997,2]
[319729630,1710952233873,-500.0,0.00026997,2]
[319729632,1710952233884,-500.0,0.00026997,2]
[319729634,1710952233896,-500.0,0.00026997,2]
[319729635,1710952233908,-500.0,0.00026997,2]
[319729637,1710952233918,-500.0,0.00026997,2]
[319729639,1710952233927,-500.0,0.00026997,2]
[319729641,1710952233937,-708.4,0.00026997,2]
[319729643,1710952233946,-877.69,0.00026997,2]
[319729644,1710952233956,-154.84515485,0.00026997,2]
[319729645,1710952233965,-500.0,0.00026997,2]
[319729646,1710952233974,-562.48,0.00026997,2]
[319729647,1710952233984,-647.82,0.00026997,2]
[319729648,1710952233992,-500.0,0.00026997,2]
[319729649,1710952234002,-500.0,0.00026997,2]
[319729650,1710952234011,-500.0,0.00026997,2]
[319729651,1710952234020,-571.29,0.00026997,2]
[319729652,1710952234030,-500.0,0.00026997,2]
[319729653,1710952234046,-500.0,0.00026997,2]
[319729654,1710952234057,-626.97051343,0.00026997,2]
[319729655,1710952234069,-500.0,0.00026997,2]
[319729656,1710952234079,-500.0,0.00026997,2]
[319729657,1710952234089,-887.92,0.00026997,2]
[319729658,1710952234099,-500.0,0.00026997,2]
[319729659,1710952234110,-631.57,0.00026997,2]
[319729660,1710952234250,-500.0,0.00026997,2]
[319729661,1710952234261,-500.0,0.00026997,2]
[319729662,1710952234271,-1124.51,0.00026997,2]
[319729663,1710952234281,-631.44,0.00026997,2]
[319729664,1710952234296,-500.0,0.00026997,2]
[319729665,1710952234306,-500.0,0.00026997,2]
[319729666,1710952234316,-2841.87,0.00026997,2]
[319729667,1710952234325,-670.5,0.00026997,2]
[319729668,1710952234335,-500.0,0.00026997,2]
[319729669,1710952234344,-1734.16,0.00026997,2]
[319729670,1710952234353,-500.0,0.00026997,2]
[319729671,1710952234363,-500.0,0.00026997,2]
[319729672,1710952234373,-19828.05,0.00026997,2]
[319729673,1710952234383,-2882.59,0.00026997,2]
[319729674,1710952234393,-516.63,0.00026997,2]
[319729675,1710952234402,-500.0,0.00026997,2]
[319729676,1710952234411,-500.0,0.00026997,2]
[319729677,1710952234422,-4089.98,0.00026997,2]
[319729678,1710952234431,-499.8305,0.00026997,2]
[319729679,1710952234441,-650.99,0.00026997,2]
[319729680,1710952234451,-500.0,0.00026997,2]
[319729681,1710952234462,-500.0,0.00026997,2]
[319729682,1710952234471,-500.0,0.00026997,2]
[319729683,1710952234481,-1906.91,0.00026997,2]
[319729684,1710952234491,-4738.96,0.00026997,2]
[319729685,1710952234501,-500.0,0.00026997,2]
[319729686,1710952234511,-696.17,0.00026997,2]
[319729687,1710952234522,-500.0,0.00026997,2]
[319729688,1710952234531,-500.0,0.00026997,2]
[319729689,1710952234546,-660.15,0.00026997,2]
[319729690,1710952234556,-413.11026157,0.00026997,2]
[319729691,1710952234565,-22603.87,0.00026997,2]
[319729692,1710952234575,-508.43371954,0.00026997,2]
[319729693,1710952234584,-500.0,0.00026997,2]
[319729694,1710952234593,-657.46,0.00026997,2]
[319729695,1710952234603,-2873.75,0.00026997,2]
[319729696,1710952234613,-345.44543819,0.00026997,2]
[319729928,1710952239896,-1727.48,0.00026996,2]
[319729930,1710952239905,-266.89456181,0.00026997,2]
[319729931,1710952239913,-500.0,0.00026997,2]
[319729934,1710952239922,-861.53,0.00026997,2]
[319729936,1710952239931,-714.06,0.00026997,2]
[319729938,1710952239941,-34264.78769098,0.00026998,2]
[319729940,1710952239953,-929.43245296,0.00026998,2]
[319729942,1710952239964,-32168.19348134,0.00026998,2]
[319729944,1710952239976,-19754.71467757,0.00026998,2]
[319729946,1710952239987,-840.80864499,0.00026998,2]
[319729949,1710952239999,-2312.29860825,0.00026998,2]
[319730064,1710952242782,-500.0,0.00026996,2]
[319730065,1710952242798,-11524.39711786,0.00026998,2]
[319730066,1710952243018,-85246.12243157,0.00026998,2]
[319730067,1710952243039,-17342.184,0.00026998,2]
[319730286,1710952246878,-3706.7737296,0.00026997,2]
[319730401,1710952301861,24900.0,0.00040944,30]
[319730404,1710952455984,500.0,0.00040896,120]
[319730431,1710952909711,-616.97666661,0.00023605,2]
[319730432,1710952909736,-304.70562123,0.00023606,2]
[319730433,1710952909756,-154.92253873,0.00023606,2]
[319730434,1710952909777,-3436.23958139,0.00023606,2]
[319730435,1710952909797,-210.03782905,0.00023607,2]
[319730436,1710952909818,-154.92253873,0.00023607,2]
[319730437,1710952909838,-157.50519909,0.00023607,2]
[319730438,1710952909858,-6732.9872,0.00023607,2]
[319730439,1710952909880,-19397.70282517,0.00023608,2]
[319730462,1710953311921,581.54450122,0.00021508,2]
[319730463,1710953346118,-2602.41354396,0.00023506,2]
[319730464,1710953346140,-4872.13937456,0.00023507,2]
[319730465,1710953346161,-191.84776158,0.00023607,2]
[319730466,1710953346183,-300.0,0.00023607,2]
[319730467,1710953346206,-2753.4542749,0.00023608,2]
[319730468,1710953353130,-24900.0,0.00025145,2]
[319730469,1710953353155,-696.4099745,0.00025221,2]
[319730470,1710953353177,-250.0,0.00025234,2]
[319730471,1710953353200,-172.897601,0.0002524,2]
[319730472,1710953353221,-3781.45390813,0.00025558,2]
[319730473,1710953360519,67555.75395528,0.00025,120]
[319730474,1710953360542,7440.5716798,0.00025,120]
[319730475,1710953360563,11822.27039684,0.00025,120]
[319730537,1710953432483,-941.15113558,0.00025558,2]
[319730545,1710953432558,-442.33886838,0.00025558,2]
[319730547,1710953432568,-158.090576,0.00025665,2]
[319730549,1710953432577,-480.0,0.00025968,2]
[319730551,1710953432586,-620.04203143,0.00026306,2]
[319730553,1710953432595,-1000.0,0.000265,2]
[319730554,1710953432605,-581.54450122,0.00026508,2]
[319730556,1710953432614,-150.0,0.00026544,2]
[319730559,1710953432625,-2000.0,0.00026678,2]
[319730561,1710953432634,-178.21749972,0.00026798,3]
[319730562,1710953432643,-1000.0,0.00026898,2]
[319730564,1710953432653,-199.96254302,0.00026994,2]
[319730566,1710953432663,-998.65359999,0.00026995,2]
[319730569,1710953432673,-301.8450875,0.00026996,2]
[319730570,1710953432683,-405.00494432,0.00026996,2]
[319730573,1710953432694,-685.06399665,0.00026996,2]
[319730575,1710953432703,-1234.34178093,0.00026996,2]
[319730576,1710953432712,-337.96879196,0.00026996,2]
[319730578,1710953432721,-155.12390088,0.00026996,2]
[319730580,1710953432730,-210.03782905,0.00026996,2]
[319730582,1710953432739,-157.17607122,0.00026996,2]
[319730584,1710953432748,-154.97058719,0.00026996,2]
[319730586,1710953432758,-4054.16095464,0.00026996,2]
[319730589,1710953432767,-616.24512354,0.00026996,2]
[319730591,1710953432777,-1513.63858605,0.00026996,2]
[319730593,1710953432787,-200.93914618,0.00026996,2]
[319730595,1710953432800,-251.8271845,0.00026996,2]
[319730597,1710953432809,-500.0,0.00026997,2]
[319730599,1710953432818,-539.68252561,0.00026998,2]
[319730601,1710953432829,-184.72981038,0.00026998,2]
[319730603,1710953432839,-4232.70449713,0.00027,8]
[319730608,1710953432885,-6663.75,0.00027,8]
[319730710,1710953437873,-735.30230157,0.00027,8]
[319730711,1710953437884,-1094.99186421,0.00027,8]
[319730712,1710953437896,-348.24187206,0.00027,8]
[319730714,1710953437933,-2616.19956,0.00027,8]
[319730742,1710953441916,-2465.74508165,0.00027,8]
[319730743,1710953441928,-46550.05196716,0.00027,8]
[319730744,1710953441937,-637.28701515,0.00027171,2]
[319730745,1710953441947,-637.28701515,0.00027239,2]
[319730746,1710953441956,-500.0,0.00027271,2]
[319730747,1710953441965,-637.28701515,0.00027308,2]
[319730749,1710953441974,-317.08128171,0.00027342,2]
[319730751,1710953441983,-323.84519837,0.00027342,2]
[319730836,1710953443028,-229.40016192,0.00027342,2]
[319730838,1710953443038,-361.10761112,0.00027342,2]
[319730840,1710953443047,-4469.48477159,0.00027343,7]
[319730911,1710953446077,-812.04125896,0.0002734,2]
[319730923,1710953446242,-0.6402076,0.0002734,2]
[319731035,1710953678066,583.3413407,0.00022,2]
[319731036,1710953680024,9328.30154857,0.00040937,30]
[319731063,1710954073317,-280.97506146,0.00023055,2]
[319731064,1710954073337,-3436.23958139,0.00023056,2]
[319731065,1710954073357,-930.41641748,0.00023057,2]
[319731066,1710954073377,-814.96064088,0.00023057,2]
[319731067,1710954073397,-191.84776158,0.00023057,2]
[319731068,1710954073416,-160.68166387,0.00023058,2]
[319731069,1710954073436,-876.45467613,0.00023058,2]
[319731070,1710954073455,-154.92253873,0.00023059,2]
[319731071,1710954073475,-685.20411728,0.0002306,2]
[319731072,1710954073498,-216.2975412,0.00023061,2]
[319731073,1710954144778,-325.68369138,0.00022953,2]
[319731074,1710954144805,-602.76739922,0.00022954,2]
[319731075,1710954144829,-125.5489094,0.00022955,4]
[319731076,1710954206349,500.0,0.00040943,120]
[319731077,1710954219432,-154.92253873,0.00022954,2]
[319731078,1710954219453,-280.97506146,0.00022954,2]
[319731079,1710954219474,-20.7384444,0.00023061,2]
[319731081,1710954270836,172.897601,0.0002304,2]
[319731082,1710954364013,1236.0,0.00040943,30]
[319731083,1710954414118,-20730.0,0.00023027,2]
[319731085,1710954547194,-685.20411728,0.00023015,2]
[319731086,1710954547214,-154.92253873,0.00023015,2]
[319731087,1710954547233,-3436.23958139,0.00023016,2]
[319731088,1710954547252,-616.97666661,0.00023016,2]
[319731089,1710954547272,-300.0,0.00023016,2]
[319731090,1710954547292,-602.76739922,0.00023017,2]
[319731091,1710954547311,-304.70562123,0.00023017,2]
[319731092,1710954547338,-157.50519909,0.00023018,2]
[319731093,1710954547357,-185.1362304,0.00023019,2]
[319731094,1710954547377,-6732.9872,0.00023022,2]
[319731095,1710954547397,-4170.0,0.00023027,2]
[319731096,1710954547417,-202.1945166,0.0002347,2]
[319731097,1710954547437,-1247.09716919,0.0002386,2]
[319731098,1710954547457,-303.39799446,0.0002386,2]
[319731099,1710954547477,-5873.01830669,0.00024794,2]
[319731100,1710954547497,-322.45069646,0.00024897,2]
[319731101,1710954547517,-300.99331002,0.00024998,2]
[319731102,1710954547538,-155.67734047,0.00024998,2]
[319731103,1710954547556,-270.48618805,0.00024998,2]
[319731104,1710954547581,-201.72397373,0.00024998,2]
[319731105,1710954547600,-176.34355164,0.00024998,2]
[319731106,1710954547619,-210.03782905,0.00024998,2]
[319731107,1710954547640,-1300.05415471,0.00024999,2]
[319731108,1710954547662,-500.0,0.00024999,2]
[319731109,1710954547683,-368.98978195,0.00024999,2]
[319731110,1710954547702,-500.0,0.00024999,2]
[319731111,1710954547722,-500.0,0.00024999,2]
[319731112,1710954547743,-500.0,0.00024999,2]
[319731113,1710954547766,-500.0,0.00024999,2]
[319731114,1710954547787,-500.0,0.00024999,2]
[319731115,1710954547807,-500.0,0.00024999,2]
[319731116,1710954547831,-500.0,0.00024999,2]
[319731117,1710954547851,-500.0,0.00024999,2]
[319731118,1710954547870,-500.0,0.00024999,2]
[319731119,1710954547892,-286.19174821,0.00024999,2]
[319731120,1710954547912,-500.0,0.00024999,2]
[319731121,1710954547932,-9596.83114884,0.00025,30]
[319731122,1710954553178,-1418.80273319,0.00025,30]
[319731124,1710954574233,-157.44716261,0.00024998,2]
[319731125,1710954574254,-685.06399665,0.00024999,2]
[319731126,1710954574451,-304.70562123,0.00024999,2]
[319731127,1710954574473,-55477.55653368,0.00025,30]
[319731144,1710954632221,-2.0187231,0.00025,30]
[319731145,1710954632231,-452.83211887,0.00025218,4]
[319731146,1710954632241,-220.0,0.00025318,2]
[319731147,1710954632250,-154.90705577,0.00026223,2]
[319731148,1710954632260,-158.14912,0.00026224,2]
[319731149,1710954632270,-2398.09298226,0.00026888,2]
[319731349,1710954640430,-1065.85666397,0.00026888,2]
[319731350,1710954640440,-1501.45830153,0.00027,2]
[319731351,1710954640449,-1786.224065,0.0002734,2]
[319731352,1710954640458,-205.9833027,0.0002734,2]
[319731353,1710954640468,-1034.69818892,0.00027341,4]
[319731354,1710954640477,-205.03177245,0.00027341,2]
[319731355,1710954640487,-166.666666,0.00027397,2]
[319731356,1710954640496,-361.18103943,0.00027541,2]
[319731366,1710954643246,-30.49218028,0.00027541,2]
[319731367,1710954643256,-2745.78191176,0.00027541,2]
[319731368,1710954643265,-302.11520456,0.00027541,2]
[319731369,1710954643275,-147.0047348,0.00027541,2]
[319731402,1710954646448,-214.54309531,0.00026887,2]
[319731403,1710954653857,10000.0,0.00040944,30]
[319731404,1710954910335,376.00001,0.00041032,40]
[319731411,1710954935805,-154.92253873,0.00024792,2]
[319731412,1710954935828,-60.07746127,0.00024792,2]
[319731414,1710955247936,-331.89131947,0.00023839,2]
[319731415,1710955247958,-539.22321355,0.0002384,2]
[319731416,1710955247979,-670.88546698,0.0002384,2]
[319731426,1710955389510,-162.335416,0.00026575,120]
[319731427,1710955389625,-158.97326304,0.00035,120]
[319731428,1710955469034,-617.22297627,0.00022843,2]
[319731429,1710955469056,-275.34632078,0.00022843,2]
[319731430,1710955469077,-2602.41354396,0.00022843,2]
[319731431,1710955469101,-186.99808186,0.00022844,2]
[319731432,1710955469122,-313.49738956,0.00022844,2]
[319731433,1710955469145,-1476.73003936,0.00022844,2]
[319731434,1710955469166,-154.92253873,0.00022844,2]
[319731435,1710955469185,-154.92253873,0.00022845,2]
[319731436,1710955469205,-1537.480344,0.00022845,2]
[319731437,1710955469224,-186.0,0.00022845,2]
[319731438,1710955469248,-683.2104041,0.00022846,2]
[319731439,1710955469269,-779.2579641,0.00022846,2]
[319731440,1710955469290,-154.92253873,0.00022846,2]
[319731441,1710955469310,-1919.09606837,0.00022846,2]
[319731442,1710955469331,-154.92253873,0.00022847,2]
[319731443,1710955469352,-191.84776158,0.00022847,2]
[319731444,1710955469372,-331.89131947,0.00022847,2]
[319731445,1710955469391,-154.92253873,0.00022848,2]
[319731446,1710955469411,-366.62315762,0.00022848,2]
[319731447,1710955469432,-3504.14814187,0.00022848,2]
[319731448,1710955469452,-156.21736877,0.00022849,2]
[319731449,1710955469472,-616.97666661,0.00022849,2]
[319731450,1710955469496,-3436.23958139,0.00022849,2]
[319731451,1710955469516,-239.17077989,0.00022849,2]
[319731452,1710955469536,-1571.32607788,0.00022849,2]
[319731453,1710955469556,-22531.69331891,0.0002285,2]
[319731454,1710955626142,-616.97666661,0.00022844,2]
[319731455,1710955626165,-156.21736877,0.00022845,2]
[319731456,1710955626187,-239.17077989,0.00022845,2]
[319731457,1710955626208,-617.22297627,0.00022846,2]
[319731458,1710955626229,-154.92253873,0.00022846,2]
[319731459,1710955626250,-1476.73003936,0.00022847,2]
[319731460,1710955626272,-154.92253873,0.00022847,2]
[319731461,1710955626292,-436.04318212,0.00022847,2]
[319731463,1710955707876,162.335416,0.00026575,120]
[319731464,1710955725572,952.3194158,0.0002075,2]
[319731465,1710955750287,-331.89131947,0.00022838,2]
[319731466,1710955750308,-683.2104041,0.00022839,2]
[319731467,1710955750328,-313.49738956,0.0002284,2]
[319731468,1710955750349,-154.92253873,0.0002284,2]
[319731469,1710955750370,-3436.23958139,0.0002284,2]
[319731470,1710955750390,-1919.09606837,0.00022841,2]